Cogmind - Beta 14 @@@ ROGUE MODE // 2024.08.11 @ 00:33:30 Player: Moonray Result: Destroyed by G-47 Trooper with Particle Gun Performance ------------- Evolutions (0) 0 Regions Visited (1) 200 Robots Destroyed (9) 45 Value Destroyed (96) 96 Prototype IDs (0) 0 Alien Tech Used (0) 0 Bonus (0) 0 TOTAL SCORE: 341 Bonus ------- None Cogmind --------- Core Integrity 0/250 Matter 278/300 Energy 56/100 System Corruption 0% Temperature Hot (299) Movement Core (100) Ox1 Location -10/Materials Parts ------- > --- POWER (1) -------- (None) > --- PROPULSION (2) --- (None) > --- UTILITY (2) ------ Improved Terrain Scanner > --- WEAPON (2) ------- Particle Gun > --- INVENTORY (5) ---- (None) Peak State ------------ > --- POWER ------------ Ion Engine > --- PROPULSION ------- Aluminum Leg Aluminum Leg > --- UTILITY ---------- Small Storage Unit Improved Terrain Scanner > --- WEAPON ----------- Small Laser Assault Rifle > --- INVENTORY -------- Small Storage Unit [Rating: 9] Favorites ----------- Power Ion Engine Engine Ion Engine Propulsion Aluminum Leg Leg Aluminum Leg Utility Improved Terrain Scanner Device Improved Terrain Scanner Storage Small Storage Unit Weapon Assault Rifle Energy Gun Small Laser Ballistic Gun Assault Rifle Build | -11 -10 ------- Run | Yrd Mat Slots Evolved . | . . Power . | . . Propulsion . | . . Utility . | . . Weapon . | . . Parts Attached 10 | 9 1 Power 1 | 1 . Engine 1 | 1 . Core . | . . Reactor . | . . Propulsion 2 | 2 . Treads . | . . Leg 2 | 2 . Wheel . | . . Hover . | . . Flight . | . . Utility 4 | 4 . Device 2 | 2 . Storage 2 | 2 . Processor . | . . Hackware . | . . Protection . | . . Artifact . | . . Weapon 3 | 2 1 Energy Gun 2 | 1 1 Energy Cannon . | . . Ballistic Gun 1 | 1 . Ballistic Cannon . | . . Launcher . | . . Special Weapon . | . . Impact Weapon . | . . Slashing Weapon . | . . Piercing Weapon . | . . Special Melee Weapon . | . . Unidentified Prototypes . | . . Parts Lost 6 | . 6 Power 1 | . 1 Propulsion 2 | . 2 Utility 1 | . 1 Weapon 2 | . 2 Highest Loss Streak 6 | . 6 To Critical Strikes . | . . Average Slot Usage (%) 88 | . 88 Engine 11 | . 11 Leg 25 | . 25 Device 24 | . 24 Energy Gun 13 | . 13 Ballistic Gun 11 | . 11 Peak Build Rating 9 | 9 9 Average Rating 7 | 7 8 On Entrance 4 | . 9 Naked Turns . | . . Heaviest Build 18 | 18 10 Greatest Support 20 | 20 20 Greatest Overweight (x) 1 | 1 1 Average Overweight (x) . | . . Largest Inventory Capacity 8 | 8 5 Average Capacity 5 | 6 5 Most Carried 2 | 2 2 Average Carried . | . . Final Capacity 5 | 5 5 Final Carried 1 | 1 . Class Distribution -------------------- 100% | Mutant Dominant Class ---------------- Mutant | -10/Materials Resources | -11 -10 ----------- Run | Yrd Mat Matter Collected 371 | 371 . Remotely . | . . Salvage Created 254 | 204 50 Parts 23 | 20 3 Haulers Intercepted . | . . Recyclers Shooed . | . . Parts Field Recycled . | . . Retrieved Matter . | . . Parts Self-Destructed . | . . Prevented . | . . Kills | -11 -10 ------- Run | Yrd Mat Combat Hostiles Destroyed 1 | . 1 Guns 1 | . 1 Classes Destroyed 4 | 3 1 Worker 1 | 1 . Tunneler 6 | 6 . Recycler 1 | 1 . Grunt 1 | . 1 Best Kill Streak 2 | 2 1 Combat Bots Only 1 | . 1 Max Kills in Single Turn 2 | 2 1 Gunslinging . | . . Exploded . | . . Melee . | . . Uniques/NPCs Destroyed . | . . Combat | -11 -10 -------- Run | Yrd Mat Hostile Shots Fired 72 | . 72 Missed 15 | . 15 Damage Taken 746 | . 746 Core 250 | . 250 Absorbed by Shields . | . . Core Remaining (%) 100 | 100 . Volleys Fired 48 | 27 21 Largest 2 | 2 2 Hottest 65 | 60 65 Shots Fired 87 | 54 33 Gun 87 | 54 33 Cannon . | . . Launcher . | . . Special . | . . Kinetic 41 | 27 14 Thermal 46 | 27 19 Explosive . | . . Electromagnetic . | . . Robot Hit Streak 8 | 7 8 Robot Miss Streak 2 | 2 2 Penetration Max . | . . Secondary Targets 1 | . 1 Max Gunslinging Chain 1 | . 1 Shots Hit Robots 58 | 36 22 Core Hits 14 | 9 5 Critical Kills . | . . Critical Parts Destroyed . | . . Critical Strikes . | . . Melee Attacks . | . . Impact . | . . Slashing . | . . Piercing . | . . Sneak Attacks . | . . Combat Hostiles . | . . Follow-up Attacks . | . . Damage Inflicted 800 | 480 320 Guns 800 | 480 320 Cannons . | . . Explosions . | . . Melee . | . . Ramming . | . . Kinetic 379 | 268 111 Thermal 421 | 212 209 Explosive . | . . Electromagnetic . | . . Impact . | . . Slashing . | . . Piercing . | . . Highest Corruption . | . . Average Corruption . | . . Corruption Purged . | . . Corruption Blocked . | . . Overload Shots . | . . Overflow Damage . | . . Projectiles . | . . Explosions . | . . Melee . | . . Knockbacks . | . . Impact . | . . Kinetic . | . . Secondary . | . . Self-Inflicted Damage . | . . Shots . | . . Rammed . | . . Targets Rammed . | . . Kicked . | . . Crushed . | . . Highest Temperature 315 | . 315 Average Temperature 158 | . 158 Received Heat Transfer 441 | . 441 Effects 1 | . 1 Interference 1 | . 1 Siege Activations . | . . Robots Corrupted . | . . Combat Hostiles . | . . Parts Fried . | . . Impact Corruptions . | . . Robots Melted . | . . Combat Hostiles . | . . Parts Melted . | . . Heat Transferred 959 | 475 484 Parts Sabotaged . | . . Parts Stolen . | . . Parts Stripped . | . . Power Chain Reactions . | . . Alert | -11 -10 ------- Run | Yrd Mat Peak Influence 61 | 40 61 Initial 26 | . 26 Average 21 | 15 29 Maximum Alert Level . | . . Low Security (%) 100 | 100 100 Level 1 . | . . Level 2 . | . . Level 3 . | . . Level 4 . | . . Level 5 . | . . High Security . | . . Max Security . | . . Squads Dispatched 1 | . 1 Investigation 1 | . 1 Extermination . | . . Reinforcement . | . . Assault . | . . Garrison . | . . Intercept . | . . Searches Triggered . | . . Construction Impeded . | . . Haulers Reinforced . | . . Active Scanning Responses . | . . Cargo Convoy Interrupts . | . . Stealth | -11 -10 --------- Run | Yrd Mat Distress Signals 2 | . 2 Communications Jammed . | . . Distress Signals . | . . Times Spotted 5 | . 5 Peak Tracking Total 5 | . 5 Tactical Retreats 1 | . 1 Traps | -11 -10 ------- Run | Yrd Mat Traps Triggered 1 | . 1 Indirectly . | . . Trap Hack Attempts . | . . Triggered . | . . Disarmed . | . . Reprogrammed . | . . Reused . | . . Traps Extracted . | . . Installed . | . . Triggered . | . . Machines | -11 -10 ---------- Run | Yrd Mat Machines Disabled . | . . Max in Single Turn . | . . Machines Repaired . | . . Machines Dismantled . | . . Machines Sabotaged . | . . Overloaded Fab Kills . | . . Hacking | -11 -10 --------- Run | Yrd Mat Machines Accessed 1 | . 1 Terminals 1 | . 1 Fabricators . | . . Repair Stations . | . . Recycling Units . | . . Scanalyzers . | . . Garrison Access . | . . Total Hacks 4 | . 4 Successful 4 | . 4 Failed . | . . Catastrophic . | . . Database Lockouts . | . . Manual . | . . Terminals 4 | . 4 Fabricators . | . . Repair Stations . | . . Recycling Units . | . . Scanalyzers . | . . Garrison Access . | . . Terminal Hacks 4 | . 4 Record 2 | . 2 Alert Level 2 | . 2 Fabricator Hacks . | . . Repair Station Hacks . | . . Recycling Unit Hacks . | . . Scanalyzer . | . . Garrison Access Hacks . | . . Unauthorized Hacks . | . . Terminals . | . . Fabricators . | . . Repair Stations . | . . Recycling Units . | . . Scanalyzers . | . . Garrison Access . | . . Data Cores Recovered . | . . Used . | . . Hacking Detections . | . . Full Trace Events . | . . Feedback Events . | . . Feedback Blocked . | . . Robot Schematics Acquired . | . . Robots Built . | . . Authchips . | . . Time . | . . Total Robot Build Rating . | . . Part Schematics Acquired . | . . Parts Built . | . . Authchips . | . . Time . | . . Total Part Build Rating . | . . Parts Repaired . | . . Time . | . . Parts Recycled . | . . Recycled Matter . | . . Retrieved Matter . | . . Retrieved Components . | . . Parts Scanalyzed . | . . Part Schematics Acquired . | . . Parts Damaged . | . . Bothacking | -11 -10 ------------ Run | Yrd Mat Used RIF Installer . | . . Robots Hacked . | . . Non-combat . | . . Combat . | . . Robot Hacks Applied . | . . Relay Couplers Released . | . . Fabnet Peak Effective % . | . . Robots Rewired . | . . Allies Hacked . | . . Hacks Repelled . | . . Allies | -11 -10 -------- Run | Yrd Mat Total Allies . | . . Largest Group . | . . Highest-Rated Group . | . . Highest-Rated Ally . | . . Total Orders . | . . Ally Attacks . | . . Total Damage . | . . Kills . | . . Allies Corrupted . | . . Allies Melted . | . . Intel | -11 -10 ------- Run | Yrd Mat Robot Analysis Total . | . . Derelict Logs Recovered . | . . Drone Launches . | . . Drone Recoveries . | . . Exploration | -11 -10 ------------- Run | Yrd Mat Turns Passed 449 | 280 169 Spaces Moved 250 | 157 93 Core 19 | 17 2 Treads . | . . Legs 231 | 140 91 Wheels . | . . Hover . | . . Flight . | . . Fastest Speed 50 | 50 100 Average Speed 116 | 114 119 Slowest Speed 120 | 120 120 Overloaded Moves . | . . Propulsion Burnouts . | . . Robots Hopped . | . . Cave-ins Triggered . | . . Exploration Rate (%) 13 | 6 21 Regions Visited 1 Branch Regions . Pre-discovered Areas . | . . Known Exits Taken . | . . Unknown Exits Taken 1 | 1 . Scrap Searched . | . . Spaces Dug . | . . Terrain Destroyed . | . . Melee . | . . Projectile . | . . AOE . | . . Terrain Rammed . | . . Walls Destroyed . | . . Machines Disabled . | . . Actions | -11 -10 --------- Run | Yrd Mat Total 321 | 202 119 Wait . | . . Move 249 | 156 93 Hop . | . . Pick Up 11 | 9 2 Fast Attach . | . . Attach 8 | 7 1 Detach . | . . Swap 2 | 2 . Drop 3 | 1 2 Fire 48 | 27 21 Melee . | . . Ram . | . . Kick . | . . Crush . | . . Escape Stasis . | . . Rewire . | . . Trap . | . . Miscellaneous . | . . Route ------- -11/Scrapyard -10/Materials History --------- Turn | Location | Event 3 | -11/Scrapyard | Discovered new exit (range 16) 281 | -11/Scrapyard | Entered Materials 301 | -10/Materials | Build established: Mutant 433 | -10/Materials | Core integrity fell below 50% 445 | -10/Materials | Core integrity fell below 20% 450 | -10/Materials | Destroyed by G-47 Trooper with Particle Gun Last Messages --------------- Switching to secondary target: G-34 Mercenary. K-01 Serf collects debris. Critical hit (Burn: +37). Sml. Laser destroyed. Ion Engine destroyed. G-34 Mercenary destroyed. Assault Rifle destroyed. Acquired Particle Gun. Aluminum Leg destroyed. G-34 Mercenary heat damages Ion Engine, Sml. Laser, Aluminum Leg, Aluminum Leg. G-34 Mercenary overheating. Destroyed Sml. Laser. G-34 Mercenary overheating. G-34 Mercenary heat spikes uncontrollably. G-34 Mercenary overheating. Overheating: System interference. Particle Gun temporarily disabled. G-34 Mercenary overheating. G-34 Mercenary heat short circuits Aluminum Leg. Map ----- +----------------------------------------------------+ | ???????????????????????#?????????? | | ?????????????????????????????????? | | ?????????????????????#???????????? | | ?????????????????????????????????? | | ?????????????????????????????#???? | | ?????????????????????#???????????? | | ????????????????????#????????????? | | ??????????????#??????????????????? | | ?????????????????????????#???????? | | ?????????????????????????????????? | | ????????????????############?????? | | ????????????????#| ] # #?????? | | ????????????????# ! # #?????? | | ????????????????# """ # #??#??# | | ????????#???????# """ + ##????? | | ??????? ??#?????# """ # #?#???? | | ????????#???#???# # #??#?#? | | ???? ???????##?######## ###???? | | ?####+################# ##???? | | ?# #????? | | ## T #??##? | | #??#?? | | ###### #??#?# | | * #???####+#####??? | | #???# =[g #??? | | #??## %@!"""#??? | | " ##??# g """#??? | | "" ##??# """#?#? | | "" #???# #??? | | """ #???# """#??? | | "" #???# """#??? | | # """ ########??# """#??# | | # """ #?????????# #??? | | #? """ #?????????###########?? | | ??? " #?????#?????##??#?????? | | ??? #? ??? ???????????????? | | ?? #??"?????????#?????#??? | | ??? " # ????????????????#???? | | ?? "" +?????????? ??#???????? | | ? "" ??????????????????????? | | """ ]??????????????????????? | | ??? ??????? ??????????????? | | ? ????" ?????#????????????????? | | ???????" ??????????????????????? | | ???????" ????????? ????????????? | | ???????? ??????????????????????? | | ?????????????????????????????????? | | ?????????????????????????????????? | | ?????????????????????????????????? | | ?????????????????????????????????? | +----------------------------------------------------+ Best States ------------- Heat Dissipation 25 Energy Generation 10 Energy Capacity 250 Matter Stores 300 Matter Capacity 300 Sight Range 16 Terrain Scan Range 16 Terrain Scan Density 10 Evasion (%) 55 Item Schematics ----------------- None Robot Schematics ------------------ None Fabricated ------------ Nothing Alien Tech Used ----------------- None Achievements -------------- None Challenges ------------ None Game ------ Seed MultitargetingHackingShifter Manual? 0 Play Time 00:11:06 Cumulative 1.2 hours Start 2024.08.10 @ 23:16:16 End 2024.08.11 @ 00:33:30 Sessions 1 Manual Loads 0 Difficulty Rogue Special Mode None Game No. 6 Rogue 6 Adventurer 0 Explorer 0 Win Type - Total 0 Types 0/0/0/0/0/0/0/0/0 Lore% 1 Gallery% 5 Achievement% 7 Wizard Run 0 Options --------- Layout 1 ASCII 0 Keyboard 0 Movement Mouse Keybinds 0 Fullscreen 1 Font 24/Terminus Map View 50x35 Zoom Use 0% Tactical HUD 0 Map Filters NONE Filters NONE Steam 1 RUN: a0e77155-ad3c-4739-bf27-1639fd60cfec